Cogmind - Beta 16.1 @@@ ROGUE MODE // 2026.02.24 @ 23:20:54 Player: SelfCookedBird Result: Destroyed by Y-45 Defender with Beam Rifle Performance ------------- Evolutions (1) 500 Regions Visited (3) 600 Robots Destroyed (11) 55 Value Destroyed (381) 381 Prototype IDs (0) 0 Alien Tech Used (0) 0 Bonus (0) 0 TOTAL SCORE: 1536 Bonus ------- None Cogmind --------- Core Integrity 0/400 Matter 212/300 Energy 100/100 System Corruption 12% Temperature Cool (9) Movement Core (100) Ox1 Location -9/Materials Parts ------- > --- POWER (1) -------- (None) > --- PROPULSION (3) --- (None) > --- UTILITY (3) ------ Small Storage Unit Visual Processing Unit > --- WEAPON (2) ------- (None) > --- INVENTORY (8) ---- Ion Engine Light Treads Light Treads Wheel Compact Wheel Structural Scanner Signal Interpreter Targeting Computer Peak State ------------ > --- POWER ------------ Ion Engine > --- PROPULSION ------- Aluminum Leg Aluminum Leg > --- UTILITY ---------- Small Storage Unit Structural Scanner Targeting Computer > --- WEAPON ----------- Particle Gun Grenade Launcher > --- INVENTORY -------- Ion Engine Light Treads Light Treads Wheel Compact Wheel Structural Scanner Targeting Computer [Rating: 9] Favorites ----------- Power Ion Engine Engine Ion Engine Propulsion Aluminum Leg Leg Aluminum Leg Utility Small Storage Unit Device Structural Scanner Storage Small Storage Unit Processor Targeting Computer Weapon Grenade Launcher Energy Gun Medium Laser Launcher Grenade Launcher Build | -11 -10 -10 -9 ------- Run | Yrd Mat Min Mat Slots Evolved 2 | . . . 2 Power . | . . . . Propulsion 1 | . . . 1 Utility 1 | . . . 1 Weapon . | . . . . Parts Attached 14 | 7 2 2 3 Power 1 | 1 . . . Engine 1 | 1 . . . Core . | . . . . Reactor . | . . . . Propulsion 4 | 2 . 1 1 Treads . | . . . . Leg 4 | 2 . 1 1 Wheel . | . . . . Hover . | . . . . Flight . | . . . . Utility 4 | 1 1 . 2 Device 1 | . 1 . . Storage 1 | 1 . . . Processor 2 | . . . 2 Hackware . | . . . . Protection . | . . . . Artifact . | . . . . Weapon 5 | 3 1 1 . Energy Gun 4 | 3 . 1 . Energy Cannon . | . . . . Ballistic Gun . | . . . . Ballistic Cannon . | . . . . Launcher 1 | . 1 . . Special Weapon . | . . . . Impact Weapon . | . . . . Slashing Weapon . | . . . . Piercing Weapon . | . . . . Special Melee Weapon . | . . . . Unidentified Prototypes . | . . . . Parts Lost 8 | . . . 8 Power 1 | . . . 1 Propulsion 3 | . . . 3 Utility 2 | . . . 2 Weapon 2 | . . . 2 Highest Loss Streak 8 | . . . 8 To Critical Strikes . | . . . . Average Backups 7 | 2 7 8 7 Power . | . 1 1 1 Propulsion 3 | 1 4 4 4 Utility 2 | . 2 3 2 Weapon . | . . . . Tool/Special . | . . . . Unused Backups 8 | . . . 8 Power 1 | . . . 1 Propulsion 4 | . . . 4 Utility 3 | . . . 3 Weapon . | . . . . Tool/Special . | . . . . Average Slot Usage (%) 91 | . 98 100 75 Engine 11 | . 14 14 8 Leg 24 | . 28 28 18 Device 11 | . 12 14 9 Storage 12 | . 14 14 11 Processor 4 | . . . 12 Energy Gun 12 | . 15 14 9 Launcher 11 | . 12 14 8 Peak Build Rating 9 | 6 7 8 9 Average Rating 7 | 5 6 7 7 On Entrance 5 | . 6 7 8 Avg Prop Armor Cover (%) . | . . . . Naked Turns . | . . . . Heaviest Build 17 | 14 16 17 17 Greatest Support 20 | 20 20 20 20 Greatest Overweight (x) 2 | 2 . . 1 Average Overweight (x) . | . . . . Largest Inventory Capacity 8 | 8 8 8 8 Average Capacity 7 | 7 8 8 8 Most Carried 8 | 5 8 8 8 Average Carried 7 | 2 7 8 7 Final Capacity 8 | 8 8 8 8 Final Carried 8 | 5 8 8 8 Class Distribution -------------------- 100% | Mutant Dominant Class ---------------- Mutant | -10/Materials Mutant | -10/Mines Mutant | -9/Materials Resources | -11 -10 -10 -9 ----------- Run | Yrd Mat Min Mat Matter Collected 340 | 255 2 8 75 Remotely . | . . . . Salvage Created 223 | . 87 43 93 Parts 19 | . 10 3 6 Haulers Intercepted . | . . . . Recyclers Shooed . | . . . . Parts Field Recycled . | . . . . Retrieved Matter . | . . . . Parts Self-Destructed . | . . . . Prevented . | . . . . Parts Restored . | . . . . Kills | -11 -10 -10 -9 ------- Run | Yrd Mat Min Mat Combat Hostiles Destroyed 11 | . 6 2 3 Guns 1 | . . 1 . AOE 10 | . 6 1 3 Classes Destroyed 2 | . 2 . . Swarmer 3 | . 3 . . Grunt 8 | . 3 2 3 Best Kill Streak 3 | . 3 2 3 Combat Bots Only 3 | . 3 2 3 Max Kills in Single Turn 3 | . 3 1 2 Gunslinging . | . . . . Exploded 3 | . 3 1 2 Melee . | . . . . Uniques/NPCs Destroyed . | . . . . Combat | -11 -10 -10 -9 -------- Run | Yrd Mat Min Mat Hostile Shots Fired 163 | . 34 5 124 Missed 62 | . 20 1 41 Hits 101 | . 14 4 83 Projectile 101 | . 14 4 83 Critical Strikes 4 | . . . 4 Damage Taken 1116 | . 200 44 872 Core 419 | . . 10 409 Absorbed by Shields . | . . . . Core Remaining (%) 98 | 100 . 96 . Volleys Fired 23 | . 12 3 8 Largest 2 | . 2 2 2 Hottest 95 | . 80 80 95 Shots Fired 38 | . 20 6 12 Gun 23 | . 12 3 8 Cannon . | . . . . Launcher 15 | . 8 3 4 Special . | . . . . Kinetic . | . . . . Thermal 23 | . 12 3 8 Explosive 15 | . 8 3 4 Electromagnetic . | . . . . Robot Hit Streak 6 | . 4 6 2 Robot Miss Streak 2 | . 2 . 1 Penetration Max . | . . . . Secondary Targets . | . . . . Shots Hit Robots 17 | . 10 5 2 Core Hits 25 | . 9 5 11 Critical Kills . | . . . . Critical Parts Destroyed . | . . . . Critical Strikes 2 | . 1 . 1 Burn 2 | . 1 . 1 Melee Attacks . | . . . . Impact . | . . . . Slashing . | . . . . Piercing . | . . . . Sneak Attacks . | . . . . Combat Hostiles . | . . . . Follow-up Attacks . | . . . . Damage Inflicted 962 | . 446 143 373 Guns 157 | . 76 36 45 Cannons . | . . . . Explosions 760 | . 370 107 283 Melee . | . . . . Ramming 45 | . . . 45 Kinetic . | . . . . Thermal 157 | . 76 36 45 Explosive 760 | . 370 107 283 Electromagnetic . | . . . . Impact . | . . . . Slashing . | . . . . Piercing . | . . . . Highest Corruption 10 | . . . 10 Average Corruption 4 | . . . 4 Corruption Purged . | . . . . Corruption Blocked . | . . . . Overload Shots . | . . . . Overflow Damage . | . . . . Projectiles . | . . . . Explosions . | . . . . Melee . | . . . . Knockbacks . | . . . . Impact . | . . . . Kinetic . | . . . . Secondary . | . . . . Self-Inflicted Damage 75 | . 38 . 37 Shots 2 | . 2 . . Rammed 6 | . . . 6 Targets Rammed 6 | . . . 6 Kicked . | . . . . Crushed . | . . . . Highest Temperature 75 | . 54 75 69 Average Temperature 29 | . 22 42 34 Received Heat Transfer 351 | . 87 27 237 Siege Activations . | . . . . Martial Activations . | . . . . Shielding Activations . | . . . . Robots Disrupted . | . . . . Combat Hostiles . | . . . . Robots Corrupted . | . . . . Combat Hostiles . | . . . . Parts Fried . | . . . . Impact Corruptions . | . . . . Robots Melted . | . . . . Combat Hostiles . | . . . . Parts Melted . | . . . . Heat Transferred 592 | . 296 111 185 Parts Sabotaged . | . . . . Parts Stolen . | . . . . Parts Stripped . | . . . . Power Chain Reactions . | . . . . Alert | -11 -10 -10 -9 ------- Run | Yrd Mat Min Mat Maximum Alert Level . | . . . . Low Security (%) 100 | 100 100 100 100 Level 1 . | . . . . Level 2 . | . . . . Level 3 . | . . . . Level 4 . | . . . . Level 5 . | . . . . High Security . | . . . . Max Security . | . . . . Peak Influence 190 | . 190 126 81 Initial 66 | . . 66 13 Average 52 | . 86 79 12 Influence Increases 421 | . 250 60 111 Destroy 0b10 Robot/C 220 | . 120 40 60 Destroy Leader 40 | . 20 10 10 Disable Machine 60 | . 45 . 15 Destroy Structure 86 | . 50 10 26 Lose Combat Pursuer 15 | . 15 . . Influence Decreases 421 | . 80 194 147 Entered New Map 127 | . . 104 23 Time Decay 233 | . 80 90 63 Lost Part 61 | . . . 61 Squads Dispatched . | . . . . Investigation . | . . . . Extermination . | . . . . Reinforcement . | . . . . Assault . | . . . . Garrison . | . . . . Intercept . | . . . . Searches Triggered . | . . . . Construction Impeded . | . . . . Haulers Reinforced . | . . . . Active Scanning Responses . | . . . . Cargo Convoy Interrupts . | . . . . Stealth | -11 -10 -10 -9 --------- Run | Yrd Mat Min Mat Distress Signals 1 | . . . 1 Communications Jammed . | . . . . Distress Signals . | . . . . Times Spotted 22 | . 11 2 9 Peak Tracking Total 8 | . 6 2 8 Tactical Retreats 1 | . 1 . . Traps | -11 -10 -10 -9 ------- Run | Yrd Mat Min Mat Traps Triggered . | . . . . Indirectly . | . . . . Trap Hack Attempts . | . . . . Triggered . | . . . . Disarmed . | . . . . Reprogrammed . | . . . . Reused . | . . . . Traps Extracted . | . . . . Installed . | . . . . Triggered . | . . . . Machines | -11 -10 -10 -9 ---------- Run | Yrd Mat Min Mat Machines Disabled 4 | . 3 . 1 Max in Single Turn 1 | . 1 . 1 Machines Repaired . | . . . . Machines Dismantled . | . . . . Machines Sabotaged . | . . . . Overloaded Fab Kills . | . . . . Hacking | -11 -10 -10 -9 --------- Run | Yrd Mat Min Mat Machines Accessed 1 | . . . 1 Terminals 1 | . . . 1 Fabricators . | . . . . Repair Stations . | . . . . Recycling Units . | . . . . Scanalyzers . | . . . . Garrison Access . | . . . . Total Hacks 2 | . . . 2 Successful . | . . . . Failed 2 | . . . 2 Catastrophic . | . . . . Database Lockouts . | . . . . Manual . | . . . . Terminals 2 | . . . 2 Fabricators . | . . . . Repair Stations . | . . . . Recycling Units . | . . . . Scanalyzers . | . . . . Garrison Access . | . . . . Terminal Hacks . | . . . . Fabricator Hacks . | . . . . Repair Station Hacks . | . . . . Recycling Unit Hacks . | . . . . Scanalyzer . | . . . . Garrison Access Hacks . | . . . . Unauthorized Hacks . | . . . . Terminals . | . . . . Fabricators . | . . . . Repair Stations . | . . . . Recycling Units . | . . . . Scanalyzers . | . . . . Garrison Access . | . . . . Data Cores Recovered . | . . . . Used . | . . . . Hacking Detections 1 | . . . 1 Full Trace Events . | . . . . Feedback Events . | . . . . Feedback Blocked . | . . . . Robot Schematics Acquired . | . . . . Robots Built . | . . . . Authchips . | . . . . Time . | . . . . Total Robot Build Rating . | . . . . Part Schematics Acquired . | . . . . Parts Built . | . . . . Authchips . | . . . . Time . | . . . . Total Part Build Rating . | . . . . Part Studies Acquired . | . . . . Parts Repaired . | . . . . Time . | . . . . Parts Recycled . | . . . . Recycled Matter . | . . . . Retrieved Matter . | . . . . Retrieved Components . | . . . . Parts Scanalyzed . | . . . . Part Schematics Acquired . | . . . . Parts Damaged . | . . . . Bothacking | -11 -10 -10 -9 ------------ Run | Yrd Mat Min Mat Used RIF Installer . | . . . . Robots Hacked . | . . . . Non-combat . | . . . . Combat . | . . . . Robot Hacks Applied . | . . . . Relay Couplers Released . | . . . . Fabnet Peak Effective % . | . . . . Robots Rewired . | . . . . Allies Hacked . | . . . . Hacks Repelled . | . . . . Allies | -11 -10 -10 -9 -------- Run | Yrd Mat Min Mat Total Allies . | . . . . Largest Group . | . . . . Highest-Rated Group . | . . . . Highest-Rated Ally . | . . . . Total Orders . | . . . . Ally Attacks . | . . . . Total Damage . | . . . . Kills . | . . . . Allies Corrupted . | . . . . Allies Melted . | . . . . Intel | -11 -10 -10 -9 ------- Run | Yrd Mat Min Mat Active Infowar (turns) 577 | . 210 187 180 Optics 4 | . . . 4 Structural 573 | . 210 187 176 Robot Analysis Total . | . . . . Derelict Logs Recovered . | . . . . Drone Launches . | . . . . Drone Recoveries . | . . . . Exploration | -11 -10 -10 -9 ------------- Run | Yrd Mat Min Mat Turns Passed 701 | 84 220 187 210 Spaces Moved 498 | 61 147 146 144 Core 16 | 10 . . 6 Treads . | . . . . Legs 482 | 51 147 146 138 Wheels . | . . . . Hover . | . . . . Flight . | . . . . Fastest Speed 50 | 50 120 120 100 Average Speed 118 | 113 120 120 119 Slowest Speed 190 | 190 120 120 120 Overloaded Moves . | . . . . Propulsion Burnouts . | . . . . Robots Hopped . | . . . . Potential Cave-ins . | . . . . Cave-ins Triggered . | . . . . Exploration Rate (%) 21 | 3 29 33 21 Regions Visited 3 Branch Regions 1 Pre-discovered Areas . | . . . . Known Exits Taken . | . . . . Unknown Exits Taken 3 | 1 1 1 . Scrap Searched . | . . . . Spaces Dug 14 | . 14 . . Terrain Destroyed 86 | . 50 13 23 Melee . | . . . . Projectile . | . . . . AOE 86 | . 50 13 23 Terrain Rammed 8 | . . . 8 Walls Destroyed . | . . . . Machines Disabled . | . . . . Actions | -11 -10 -10 -9 --------- Run | Yrd Mat Min Mat Total 564 | 72 169 153 170 Wait 7 | . 6 1 . Move 495 | 60 146 145 144 Hop . | . . . . Pick Up 9 | 5 3 . 1 Fast Attach 9 | 6 1 . 2 Attach 1 | . . . 1 Detach . | . . . . Swap 4 | 1 1 2 . Drop 2 | . . 2 . Fire 23 | . 12 3 8 Melee . | . . . . Ram 14 | . . . 14 Kick . | . . . . Crush . | . . . . Escape Stasis . | . . . . Rewire . | . . . . Trap . | . . . . Miscellaneous . | . . . . Route ------- -11/Scrapyard -10/Materials -10/Mines -9/Materials History --------- Turn | Location | Event 4 | -11/Scrapyard | Discovered new exit (range 15) 85 | -11/Scrapyard | Entered Materials 288 | -10/Materials | Discovered new exit (range 11) 305 | -10/Materials | Entered Mines 306 | -10/Mines | Build established: Mutant 408 | -10/Mines | Assembled infested the area 413 | -10/Mines | Assisted by a Guerilla fighting off Assembled 482 | -10/Mines | Discovered new exit (range 8) 492 | -10/Mines | Entered Materials 492 | -9/Materials | Evolved 2 slots: Propulsion x1, Utility x1 688 | -9/Materials | Core integrity fell below 50% 697 | -9/Materials | Core integrity fell below 20% 702 | -9/Materials | System corruption reached 10% 702 | -9/Materials | Destroyed by Y-45 Defender with Beam Rifle Last Messages --------------- Critical hit (Burn: +37). Slammed into Nuclear Reactor. Destabilizing: Core damaged (-12). Slammed into Nuclear Reactor. K-01 Serf collects debris. Slammed into Nuclear Reactor. Destabilizing: System corrupted (+1). K-01 Serf collects debris. Slammed into Nuclear Reactor. Destabilizing: System corrupted (+2). Slammed into Nuclear Reactor. Destabilizing: System corrupted (+1). Critical hit (Burn: +37). Slammed into Nuclear Reactor. Destabilizing: System corrupted (+2). K-01 Serf collects debris. [Achievement: System Compromised] Slammed into Nuclear Reactor. Destabilizing: System corrupted (+2). Destabilizing: Core damaged (-16). Map ----- +----------------------------------------------------+ | ???????????????????? # T # ######## ##????? | | ???????????????????? # # + ##??### | | ???????????????????? # """ # # ##??### | | ???????????????????? # """ # #####+## # | | ???????????????????? # """ + # | | ????????????? # # ######## T + | | ?????????????/#####+######## ######## # | | ???????????? ##????####### # | | ???????????? [ ################### | | ??????????? ################### | | ???????????## ### ########??????? | | ???????????## # ##??????? | | ????????????? # " ##??????? | | ?????????????? ! # T ##??????? | | ?????????????? """" # !== " ##??????? | | ????????????? " """ != ##??????? | | ????????????? [ != ##??????? | | ????????????? % ##??????? | | ????????????? % ##??????? | | ????????????? = ###########??????? | | ?????????????############## # ###########??????? | | ?????????????#####== ###???????????????? | | ????????????????##== # ####???????????????? | | ????????????????##= s # ###????????????????? | | ????????????????## k sY # ##?????????????????? | | ????????????????## k[ =@# ##?????????????????? | | ????????????????## """# ##?????????????????? | | ????????????????## """# ##?????????????????? | | ????????????????## """# # ?????????????????? | | ????????????????## # # ?????????????????? | | ????????????????########### # ?????????????????? | | ????????????????######???## #"?????????????????? | | ????????????????????????? #"?????????????????? | | ?????????????????????????? #"?????????????????? | | ????????????????????????? # ?????????????????? | | ?????????????????????????## + ?????????????????? | | ?????????????????????????## # ?????????????????? | | ?????????????????????????????????????????????????? | | ?????????????????????????????????????????????????? | | ?????????????????????????????????????????????????? | | ?????????????????????????????????????????????????? | | ?????????????????????????????????????????????????? | | ?????????????????????????????????????????????????? | | ?????????????????????????????????????????????????? | | ?????????????????????????????????????????????????? | | ?????????????????????????????????????????????????? | | ?????????????????????????????????????????????????? | | ?????????????????????????????????????????????????? | | ?????????????????????????????????????????????????? | | ?????????????????????????????????????????????????? | +----------------------------------------------------+ Best States ------------- Heat Dissipation 28 Energy Generation 10 Energy Capacity 250 Matter Stores 285 Matter Capacity 300 Sight Range 18 Terrain Scan Density 10 Evasion (%) 55 Targeting Accuracy 5 Item Schematics ----------------- None Robot Schematics ------------------ None Fabricated ------------ Nothing Repaired ---------- Nothing Studied --------- None Alien Tech Used ----------------- None Achievements -------------- Spot Them First System Compromised Challenges ------------ None Game ------ Seed CompactElectronFist Manual? 0 Play Time 00:07:56 Cumulative 2.3 hours Start 2026.02.24 @ 23:12:54 End 2026.02.24 @ 23:20:54 Sessions 1 Manual Loads 0 Difficulty Rogue Special Mode None Game No. 7 Rogue 7 Adventurer 0 Explorer 0 Win Type - Total 0 Types 0/0/0/0/0/0/0/0/0/0 Lore% 5 Gallery% 5 Achievement% 6 Wizard Run 0 Options --------- Layout 0 ASCII 0 Keyboard 1 Movement Arrows Keybinds 0 Fullscreen 1 Font 24/Smallcaps Map View 113x50 Zoom Use 0% Tactical HUD 0 Map Filters NONE Filters NONE Steam 0 RUN: 56e8bcb7-c528-4e0e-a7fd-e65314b2f92f